fUSD/lending_fUSD_20250617
["ID","MTS","AMOUNT","RATE_DAILY","PERIOD"]
[366343512,1750199449565,-490.0,0.00016438,2]
[366343513,1750199449575,-490.0,0.00016438,2]
[366343514,1750199449585,-480.0,0.00016438,2]
[366343515,1750199449595,-490.0,0.00016438,2]
[366343516,1750199449604,-490.0,0.00016438,2]
[366343517,1750199449614,-490.0,0.00016438,2]
[366343518,1750199449624,-490.0,0.00016438,2]
[366343519,1750199449633,-490.0,0.00016438,2]
[366343520,1750199449643,-490.0,0.00016438,2]
[366343521,1750199449653,-490.0,0.00016438,2]
[366343522,1750199449662,-490.0,0.00016438,2]
[366343523,1750199449672,-490.0,0.00016438,2]
[366343524,1750199449682,-153.31589308,0.00016438,2]
[366343525,1750199449692,-490.0,0.00016438,2]
[366343526,1750199449702,-490.0,0.00016438,2]
[366343527,1750199449711,-1019.9,0.00016438,2]
[366343528,1750199449721,-703.39,0.00016438,2]
[366343529,1750199449732,-490.0,0.00016438,2]
[366343530,1750199449742,-490.0,0.00016438,2]
[366343531,1750199449752,-490.0,0.00016438,2]
[366343532,1750199449762,-490.0,0.00016438,2]
[366343533,1750199449772,-490.0,0.00016438,2]
[366343534,1750199449781,-1295.71,0.00016438,2]
[366343535,1750199449791,-490.0,0.00016438,2]
[366343536,1750199449801,-490.0,0.00016438,2]
[366343537,1750199449810,-490.0,0.00016438,2]
[366343538,1750199449819,-490.0,0.00016438,2]
[366343539,1750199449829,-2389.02,0.00016438,2]
[366343540,1750199449839,-490.0,0.00016438,2]
[366343541,1750199449848,-490.0,0.00016438,2]
[366343542,1750199449858,-490.0,0.00016438,2]
[366343543,1750199449868,-490.0,0.00016438,2]
[366343544,1750199449878,-490.0,0.00016438,2]
[366343545,1750199449890,-490.0,0.00016438,2]
[366343546,1750199449902,-700.34,0.00016438,2]
[366343547,1750199449911,-490.0,0.00016438,2]
[366343548,1750199449921,-490.0,0.00016438,2]
[366343549,1750199449931,-490.0,0.00016438,2]
[366343550,1750199449942,-490.0,0.00016438,2]
[366343551,1750199449952,-490.0,0.00016438,2]
[366343552,1750199449962,-490.0,0.00016438,2]
[366343553,1750199449971,-490.0,0.00016438,2]
[366343554,1750199449981,-490.0,0.00016438,2]
[366343555,1750199449990,-490.0,0.00016438,2]
[366343556,1750199450002,-490.0,0.00016438,2]
[366343557,1750199450012,-490.0,0.00016438,2]
[366343558,1750199450021,-490.0,0.00016438,2]
[366343559,1750199450031,-151.0,0.00016438,2]
[366343560,1750199450041,-151.0,0.00016438,2]
[366343561,1750199450050,-490.0,0.00016438,2]
[366343562,1750199450060,-151.0,0.00016438,2]
[366343563,1750199450070,-1767.07,0.00016438,2]
[366343564,1750199450079,-151.0,0.00016438,2]
[366343565,1750199450090,-151.0,0.00016438,2]
[366343566,1750199450099,-490.0,0.00016438,2]
[366343567,1750199450111,-490.0,0.00016438,2]
[366343568,1750199450121,-490.0,0.00016438,2]
[366343569,1750199450130,-490.0,0.00016438,2]
[366343570,1750199450139,-490.0,0.00016438,2]
[366343571,1750199450149,-490.0,0.00016438,2]
[366343572,1750199450161,-490.0,0.00016438,2]
[366343573,1750199450171,-490.0,0.00016438,2]
[366343574,1750199450180,-490.0,0.00016438,2]
[366343575,1750199450191,-490.0,0.00016438,2]
[366343576,1750199450201,-490.0,0.00016438,2]
[366343577,1750199450211,-490.0,0.00016438,2]
[366343578,1750199450221,-688.11,0.00016438,2]
[366343579,1750199450232,-490.0,0.00016438,2]
[366343580,1750199450242,-731.34,0.00016438,2]
[366343581,1750199450252,-490.0,0.00016438,2]
[366343582,1750199450262,-490.0,0.00016438,2]
[366343583,1750199450272,-490.0,0.00016438,2]
[366343584,1750199450282,-490.0,0.00016438,2]
[366343585,1750199450291,-151.0,0.00016438,2]
[366343586,1750199450301,-490.0,0.00016438,2]
[366343587,1750199450312,-151.0,0.00016438,2]
[366343588,1750199450322,-490.0,0.00016438,2]
[366343589,1750199450333,-1287.19,0.00016438,2]
[366343590,1750199450343,-490.0,0.00016438,2]
[366343591,1750199450352,-490.0,0.00016438,2]
[366343592,1750199450362,-490.0,0.00016438,2]
[366343593,1750199450371,-608.4,0.00016438,2]
[366343594,1750199450381,-490.0,0.00016438,2]
[366343595,1750199450391,-1372.17,0.00016438,2]
[366343596,1750199450401,-596.19,0.00016438,2]
[366343597,1750199450411,-151.0,0.00016438,2]
[366343598,1750199450421,-490.0,0.00016438,2]
[366343599,1750199450430,-151.0,0.00016438,2]
[366343600,1750199450439,-490.0,0.00016438,2]
[366343601,1750199450449,-151.0,0.00016438,2]
[366343602,1750199450458,-490.0,0.00016438,2]
[366343603,1750199450469,-151.0,0.00016438,2]
[366343604,1750199450479,-490.0,0.00016438,2]
[366343605,1750199450488,-490.0,0.00016438,2]
[366343606,1750199450498,-1713.2,0.00016438,2]
[366343607,1750199450508,-490.0,0.00016438,2]
[366343608,1750199450517,-490.0,0.00016438,2]
[366343609,1750199450527,-490.0,0.00016438,2]
[366343610,1750199450537,-562.43,0.00016438,2]
[366343611,1750199450548,-490.0,0.00016438,2]
[366343612,1750199450559,-1049.43,0.00016438,2]
[366343613,1750199450568,-434.5156874,0.00016438,2]
[366343614,1750199450579,-490.0,0.00016438,2]
[366343615,1750199450589,-490.0,0.00016438,2]
[366343616,1750199450599,-490.0,0.00016438,2]
[366343617,1750199450608,-490.0,0.00016438,2]
[366343618,1750199450618,-490.0,0.00016438,2]
[366343619,1750199450627,-490.0,0.00016438,2]
[366343620,1750199450637,-490.0,0.00016438,2]
[366343621,1750199450646,-2260.84,0.00016438,2]
[366343622,1750199450656,-490.0,0.00016438,2]
[366343623,1750199450668,-639.88,0.00016438,2]
[366343624,1750199450678,-490.0,0.00016438,2]
[366343625,1750199450687,-490.0,0.00016438,2]
[366343626,1750199450697,-490.0,0.00016438,2]
[366343627,1750199450707,-490.0,0.00016438,2]
[366343628,1750199450717,-508.47477517,0.00016438,2]
[366343629,1750199450726,-1030.78,0.00016438,2]
[366343630,1750199450736,-547.39,0.00016438,2]
[366343631,1750199450745,-490.0,0.00016438,2]
[366343632,1750199450755,-490.0,0.00016438,2]
[366343633,1750199450765,-474.59247901,0.00016438,2]
[366343634,1750199450774,-490.0,0.00016438,2]
[366343635,1750199450785,-490.0,0.00016438,2]
[366343636,1750199450794,-1063.09,0.00016438,2]
[366343637,1750199450804,-490.0,0.00016438,2]
[366343638,1750199450813,-490.0,0.00016438,2]
[366343639,1750199450823,-607.31894127,0.00016438,2]
[366343640,1750199450833,-151.0,0.00016438,2]
[366343641,1750199450842,-151.0,0.00016438,2]
[366343642,1750199450852,-151.0,0.00016438,2]
[366343643,1750199450862,-490.0,0.00016438,2]
[366343644,1750199450871,-151.0,0.00016438,2]
[366343645,1750199450881,-151.0,0.00016438,2]
[366343646,1750199450890,-490.0,0.00016438,2]
[366343647,1750199450899,-151.0,0.00016438,2]
[366343648,1750199450909,-1738.32,0.00016438,2]
[366343649,1750199450918,-151.0,0.00016438,2]
[366343650,1750199450927,-490.0,0.00016438,2]
[366343651,1750199450937,-263.77250977,0.00016438,2]
[366343652,1750199450946,-490.0,0.00016438,2]
[366343653,1750199450956,-500.0,0.00016438,2]
[366343654,1750199450965,-490.0,0.00016438,2]
[366343655,1750199450974,-500.0,0.00016438,2]
[366343656,1750199450984,-500.0,0.00016438,2]
[366343657,1750199450994,-151.0,0.00016438,2]
[366343658,1750199451004,-428.93448353,0.00016438,2]
[366343659,1750199451016,-165.792415,0.00016438,2]
[366343660,1750199451027,-500.0,0.00016438,2]
[366343661,1750199451037,-490.0,0.00016438,2]
[366343662,1750199451047,-150.0,0.00016438,2]
[366343663,1750199451056,-151.94182157,0.00016438,2]
[366343664,1750199451065,-490.0,0.00016438,2]
[366343665,1750199451075,-490.0,0.00016438,2]
[366343666,1750199451085,-1375.39,0.00016438,2]
[366343667,1750199451098,-203.07533106,0.00016438,2]
[366343668,1750199451107,-490.0,0.00016438,2]
[366343669,1750199451117,-490.0,0.00016438,2]
[366343670,1750199451128,-150.0,0.00016438,2]
[366343671,1750199451138,-490.0,0.00016438,2]
[366343672,1750199451149,-490.0,0.00016438,2]
[366343673,1750199451160,-490.0,0.00016438,2]
[366343674,1750199451172,-490.0,0.00016438,2]
[366343675,1750199451182,-150.0,0.00016438,2]
[366343676,1750199451191,-150.0,0.00016438,2]
[366343677,1750199451203,-540.0,0.00016438,2]
[366343678,1750199451212,-150.0,0.00016438,2]
[366343679,1750199451222,-490.0,0.00016438,2]
[366343680,1750199451231,-256.62350086,0.00016438,2]
[366343681,1750199451241,-1199.37,0.00016438,2]
[366343682,1750199451251,-501.79406594,0.00016438,2]
[366343683,1750199451260,-490.0,0.00016438,2]
[366343684,1750199451269,-490.0,0.00016438,2]
[366343685,1750199451279,-173.87299562,0.00016438,2]
[366343686,1750199451289,-490.0,0.00016438,2]
[366343687,1750199451298,-354.41540437,0.00016438,2]
[366343688,1750199451308,-490.0,0.00016438,2]
[366343689,1750199451317,-490.0,0.00016438,2]
[366343690,1750199451326,-490.0,0.00016438,2]
[366343691,1750199451336,-490.0,0.00016438,2]
[366343692,1750199451345,-151.0,0.00016438,2]
[366343693,1750199451354,-490.0,0.00016438,2]
[366343694,1750199451363,-490.0,0.00016438,2]
[366343695,1750199451373,-260.08674832,0.00016438,2]
[366343696,1750199451383,-665.57,0.00016438,2]
[366343697,1750199451395,-1503.4,0.00016438,2]
[366343698,1750199451406,-500.0,0.00016438,2]
[366343699,1750199451416,-500.0,0.00016438,2]
[366343700,1750199451426,-500.0,0.00016438,2]
[366343701,1750199451436,-150.0,0.00016438,2]
[366343702,1750199451445,-1000.0,0.00016438,2]
[366343703,1750199451455,-500.0,0.00016438,2]
[366343704,1750199451464,-500.0,0.00016438,2]
[366343705,1750199451474,-490.0,0.00016438,2]
[366343706,1750199451483,-259.15325875,0.00016438,2]
[366343707,1750199451493,-490.0,0.00016438,2]
[366343708,1750199451502,-490.0,0.00016438,2]
[366343709,1750199451512,-151.7060682,0.00016438,2]
[366343710,1750199451521,-636.04,0.00016438,2]
[366343711,1750199451530,-810.81,0.00016438,2]
[366343712,1750199451540,-490.0,0.00016438,2]
[366343713,1750199451549,-490.0,0.00016438,2]
[366343714,1750199451559,-490.0,0.00016438,2]
[366343715,1750199451569,-490.0,0.00016438,2]
[366343716,1750199451579,-490.0,0.00016438,2]
[366343717,1750199451589,-855.7,0.00016438,2]
[366343718,1750199451599,-968.58,0.00016438,2]
[366343719,1750199451608,-797.14,0.00016438,2]
[366343720,1750199451618,-563.76,0.00016438,2]
[366343721,1750199451629,-158.55861429,0.00016438,2]
[366343722,1750199451638,-490.0,0.00016438,2]
[366343723,1750199451647,-490.0,0.00016438,2]
[366343724,1750199451658,-490.0,0.00016438,2]
[366343725,1750199451668,-490.0,0.00016438,2]
[366343726,1750199451678,-1501.47,0.00016438,2]
[366343727,1750199451687,-490.0,0.00016438,2]
[366343728,1750199451697,-1771.46,0.00016438,2]
[366343729,1750199451707,-490.0,0.00016438,2]
[366343730,1750199451716,-490.0,0.00016438,2]
[366343731,1750199451726,-490.0,0.00016438,2]
[366343732,1750199451736,-490.0,0.00016438,2]
[366343733,1750199451746,-490.0,0.00016438,2]
[366343734,1750199451756,-490.0,0.00016438,2]
[366343735,1750199451766,-490.0,0.00016438,2]
[366343736,1750199451775,-490.0,0.00016438,2]
[366343737,1750199451785,-490.0,0.00016438,2]
[366343738,1750199451795,-490.0,0.00016438,2]
[366343739,1750199451804,-490.0,0.00016438,2]
[366343740,1750199451814,-1409.69,0.00016438,2]
[366343741,1750199451824,-657.07,0.00016438,2]
[366343742,1750199451834,-490.0,0.00016438,2]
[366343743,1750199451843,-627.30309679,0.00016438,2]
[366343744,1750199451853,-490.0,0.00016438,2]
[366343745,1750199451863,-1294.55,0.00016438,2]
[366343746,1750199451873,-2328.35,0.00016438,2]
[366343747,1750199451882,-490.0,0.00016438,2]
[366343748,1750199451891,-612.86,0.00016438,2]
[366343749,1750199451982,-490.0,0.00016438,2]
[366343750,1750199451992,-160.0,0.00016438,2]
[366343751,1750199452001,-490.0,0.00016438,2]
[366343752,1750199452011,-490.0,0.00016438,2]
[366343753,1750199452020,-604.24728395,0.00016438,2]
[366343754,1750199452030,-490.0,0.00016438,2]
[366343755,1750199452040,-1307.77,0.00016438,2]
[366343756,1750199452050,-591.21,0.00016438,2]
[366343757,1750199452059,-490.0,0.00016438,2]
[366343758,1750199452069,-490.0,0.00016438,2]
[366343759,1750199452079,-342.0337611,0.00016438,2]
[366343760,1750199452088,-490.0,0.00016438,2]
[366343761,1750199452097,-958.82,0.00016438,2]
[366343762,1750199452107,-490.0,0.00016438,2]
[366343763,1750199452116,-730.88,0.00016438,2]
[366343764,1750199452125,-490.0,0.00016438,2]
[366343765,1750199452135,-490.0,0.00016438,2]
[366343766,1750199452144,-490.0,0.00016438,2]
[366343767,1750199452153,-955.39,0.00016438,2]
[366343768,1750199452165,-490.0,0.00016438,2]
[366343769,1750199452174,-2084.9,0.00016438,2]
[366343770,1750199452183,-735.25,0.00016438,2]
[366343771,1750199452193,-490.0,0.00016438,2]
[366343772,1750199452203,-490.0,0.00016438,2]
[366343773,1750199452213,-490.0,0.00016438,2]
[366343774,1750199452223,-490.0,0.00016438,2]
[366343775,1750199452233,-874.5,0.00016438,2]
[366343776,1750199452242,-490.0,0.00016438,2]
[366343777,1750199452252,-490.0,0.00016438,2]
[366343778,1750199452261,-258.64707557,0.00016438,2]
[366343779,1750199452271,-422.85799546,0.00016438,2]
[366343780,1750199452280,-490.0,0.00016438,2]
[366343781,1750199452289,-490.0,0.00016438,2]
[366343782,1750199452298,-490.0,0.00016438,2]
[366343783,1750199452307,-490.0,0.00016438,2]
[366343784,1750199452317,-490.0,0.00016438,2]
[366343785,1750199452326,-490.0,0.00016438,2]
[366343786,1750199452335,-490.0,0.00016438,2]
[366343787,1750199452345,-490.0,0.00016438,2]
[366343788,1750199452354,-490.0,0.00016438,2]
[366343789,1750199452364,-795.0,0.00016438,2]
[366343790,1750199452373,-678.2,0.00016438,2]
[366343791,1750199452383,-820.67,0.00016438,2]
[366343792,1750199452392,-490.0,0.00016438,2]
[366343793,1750199452401,-490.0,0.00016438,2]
[366343794,1750199452410,-490.0,0.00016438,2]
[366343795,1750199452420,-490.0,0.00016438,2]
[366343796,1750199452429,-1051.44,0.00016438,2]
[366343797,1750199452438,-490.0,0.00016438,2]
[366343798,1750199452448,-490.0,0.00016438,2]
[366343799,1750199452458,-490.0,0.00016438,2]
[366343800,1750199452467,-490.0,0.00016438,2]
[366343801,1750199452477,-490.0,0.00016438,2]
[366343802,1750199452486,-1678.08,0.00016438,2]
[366343803,1750199452496,-782.05,0.00016438,2]
[366343804,1750199452506,-490.0,0.00016438,2]
[366343805,1750199452515,-490.0,0.00016438,2]
[366343806,1750199452525,-1692.11,0.00016438,2]
[366343807,1750199452534,-490.0,0.00016438,2]
[366343808,1750199452544,-490.0,0.00016438,2]
[366343809,1750199452554,-852.71,0.00016438,2]
[366343810,1750199452564,-490.0,0.00016438,2]
[366343811,1750199452574,-1537.14,0.00016438,2]
[366343812,1750199452584,-490.0,0.00016438,2]
[366343813,1750199452593,-1133.61,0.00016438,2]
[366343814,1750199452603,-490.0,0.00016438,2]
[366343815,1750199452612,-430.0,0.00016438,2]
[366343816,1750199452622,-490.0,0.00016438,2]
[366343817,1750199452631,-490.0,0.00016438,2]
[366343818,1750199452641,-490.0,0.00016438,2]
[366343819,1750199452650,-490.0,0.00016438,2]
[366343820,1750199452660,-490.0,0.00016438,2]
[366343821,1750199452670,-490.0,0.00016438,2]
[366343822,1750199452679,-490.0,0.00016438,2]
[366343823,1750199452689,-490.0,0.00016438,2]
[366343824,1750199452698,-490.0,0.00016438,2]
[366343825,1750199452708,-490.0,0.00016438,2]
[366343826,1750199452720,-490.0,0.00016438,2]
[366343827,1750199452731,-460.0,0.00016438,2]
[366343828,1750199452740,-702.18,0.00016438,2]
[366343829,1750199452751,-490.0,0.00016438,2]
[366343830,1750199452761,-490.0,0.00016438,2]
[366343831,1750199452771,-490.0,0.00016438,2]
[366343832,1750199452781,-743.34,0.00016438,2]
[366343833,1750199452791,-1443.92,0.00016438,2]
[366343834,1750199452800,-490.0,0.00016438,2]
[366343835,1750199452810,-490.0,0.00016438,2]
[366343836,1750199452819,-490.0,0.00016438,2]
[366343837,1750199452830,-544.96845125,0.00016438,2]
[366343838,1750199452840,-1530.51,0.00016438,2]
[366343839,1750199452850,-151.0,0.00016438,2]
[366343840,1750199452859,-490.0,0.00016438,2]
[366343841,1750199452870,-1096.22,0.00016438,2]
[366343842,1750199452880,-490.0,0.00016438,2]
[366343843,1750199452889,-490.0,0.00016438,2]
[366343844,1750199452899,-1992.03,0.00016438,2]
[366343845,1750199452910,-490.0,0.00016438,2]
[366343846,1750199452920,-490.0,0.00016438,2]
[366343847,1750199452930,-511.65,0.00016438,2]
[366343848,1750199452939,-490.0,0.00016438,2]
[366343849,1750199452948,-624.76,0.00016438,2]
[366343850,1750199452959,-490.0,0.00016438,2]
[366343851,1750199452969,-608.79006314,0.00016438,2]
[366343852,1750199452979,-490.0,0.00016438,2]
[366343853,1750199452988,-1445.6,0.00016438,2]
[366343854,1750199452998,-490.0,0.00016438,2]
[366343855,1750199453008,-490.0,0.00016438,2]
[366343856,1750199453019,-490.0,0.00016438,2]
[366343857,1750199453029,-418.09758278,0.00016438,2]
[366343858,1750199453038,-490.0,0.00016438,2]
[366343859,1750199453048,-1333.64,0.00016438,2]
[366343860,1750199453058,-661.73,0.00016438,2]
[366343861,1750199453067,-490.0,0.00016438,2]
[366343862,1750199453076,-654.38,0.00016438,2]
[366343863,1750199453087,-545.08,0.00016438,2]
[366343864,1750199453097,-490.0,0.00016438,2]
[366343865,1750199453107,-490.0,0.00016438,2]
[366343866,1750199453117,-678.93,0.00016438,2]
[366343867,1750199453127,-490.0,0.00016438,2]
[366343868,1750199453137,-823.24,0.00016438,2]
[366343869,1750199453147,-818.95,0.00016438,2]
[366343870,1750199453156,-490.0,0.00016438,2]
[366343871,1750199453172,-490.0,0.00016438,2]
[366343872,1750199453181,-490.0,0.00016438,2]
[366343873,1750199453190,-1391.07,0.00016438,2]
[366343874,1750199453200,-1626.31,0.00016438,2]
[366343875,1750199453210,-506.75,0.00016438,2]
[366343876,1750199453220,-1621.83,0.00016438,2]
[366343877,1750199453231,-490.0,0.00016438,2]
[366343878,1750199453241,-490.0,0.00016438,2]
[366343879,1750199453250,-490.0,0.00016438,2]
[366343880,1750199453260,-490.34959726,0.00016438,2]
[366343881,1750199453270,-490.0,0.00016438,2]
[366343882,1750199453280,-490.0,0.00016438,2]
[366343883,1750199453290,-490.0,0.00016438,2]
[366343884,1750199453300,-490.0,0.00016438,2]
[366343885,1750199453309,-490.0,0.00016438,2]
[366343886,1750199453319,-490.0,0.00016438,2]
[366343887,1750199453329,-490.0,0.00016438,2]
[366343888,1750199453338,-490.0,0.00016438,2]
[366343889,1750199453348,-490.0,0.00016438,2]
[366343890,1750199453359,-490.0,0.00016438,2]
[366343891,1750199453368,-490.0,0.00016438,2]
[366343892,1750199453378,-535.44,0.00016438,2]
[366343893,1750199453388,-490.0,0.00016438,2]
[366343894,1750199453397,-1159.2,0.00016438,2]
[366343895,1750199453407,-852.78,0.00016438,2]
[366343896,1750199453416,-2253.41,0.00016438,2]
[366343897,1750199453426,-490.0,0.00016438,2]
[366343898,1750199453435,-822.74,0.00016438,2]
[366343899,1750199453445,-300.0,0.00016438,2]
[366343900,1750199453455,-490.0,0.00016438,2]
[366343901,1750199453464,-490.0,0.00016438,2]
[366343902,1750199453474,-898.87,0.00016438,2]
[366343903,1750199453484,-190.0,0.00016438,2]
[366343904,1750199453494,-151.0,0.00016438,2]
[366343905,1750199453504,-947.78,0.00016438,2]
[366343906,1750199453514,-151.0,0.00016438,2]
[366343907,1750199453523,-490.0,0.00016438,2]
[366343908,1750199453533,-151.0,0.00016438,2]
[366343909,1750199453544,-534.84455983,0.00016438,2]
[366343910,1750199453554,-622.5,0.00016438,2]
[366343911,1750199453564,-151.0,0.00016438,2]
[366343912,1750199453573,-598.87,0.00016438,2]
[366343913,1750199453583,-151.0,0.00016438,2]
[366343914,1750199453593,-490.0,0.00016438,2]
[366343915,1750199453602,-151.0,0.00016438,2]
[366343916,1750199453612,-254.395432,0.00016438,2]
[366343917,1750199453622,-490.0,0.00016438,2]
[366343918,1750199453632,-490.0,0.00016438,2]
[366343919,1750199453642,-490.0,0.00016438,2]
[366343920,1750199453651,-589.88825186,0.00016438,2]
[366343921,1750199453662,-490.0,0.00016438,2]
[366343922,1750199453672,-1466.37,0.00016438,2]
[366343923,1750199453682,-513.38142964,0.00016438,2]
[366343924,1750199453691,-714.78,0.00016438,2]
[366343925,1750199453701,-1275.39,0.00016438,2]
[366343926,1750199453710,-490.0,0.00016438,2]
[366343927,1750199453720,-490.0,0.00016438,2]
[366343928,1750199453730,-490.0,0.00016438,2]
[366343929,1750199453740,-460.0,0.00016438,2]
[366343930,1750199453750,-546.55,0.00016438,2]
[366343931,1750199453759,-490.0,0.00016438,2]
[366343932,1750199453769,-1954.35,0.00016438,2]
[366343933,1750199453780,-490.0,0.00016438,2]
[366343934,1750199453789,-490.0,0.00016438,2]
[366343935,1750199453799,-490.0,0.00016438,2]
[366343936,1750199453809,-809.16,0.00016438,2]
[366343937,1750199453818,-490.0,0.00016438,2]
[366343938,1750199453828,-612.77,0.00016438,2]
[366343939,1750199453838,-490.0,0.00016438,2]
[366343940,1750199453847,-1100.21,0.00016438,2]
[366343941,1750199453857,-151.0,0.00016438,2]
[366343942,1750199453867,-151.0,0.00016438,2]
[366343943,1750199453876,-151.0,0.00016438,2]
[366343944,1750199453886,-151.0,0.00016438,2]
[366343945,1750199453895,-151.0,0.00016438,2]
[366343946,1750199453904,-490.0,0.00016438,2]
[366343947,1750199453913,-724.8,0.00016438,2]
[366343948,1750199453923,-423.13602079,0.00016438,2]
[366343949,1750199453933,-164.79614793,0.00016438,2]
[366343950,1750199453943,-637.31,0.00016438,2]
[366343951,1750199453952,-840.63,0.00016438,2]
[366343952,1750199453962,-944.49,0.00016438,2]
[366343953,1750199453972,-490.0,0.00016438,2]
[366343954,1750199453982,-490.0,0.00016438,2]
[366343955,1750199453992,-490.0,0.00016438,2]
[366343956,1750199454002,-620.90852424,0.00016438,2]
[366343957,1750199454011,-490.0,0.00016438,2]
[366343958,1750199454021,-490.0,0.00016438,2]
[366343959,1750199454032,-552.18,0.00016438,2]
[366343960,1750199454041,-278.598281,0.00016438,2]
[366343961,1750199454051,-278.598281,0.00016438,2]
[366343962,1750199454060,-278.598281,0.00016438,2]
[366343963,1750199454070,-2112.37,0.00016438,2]
[366343964,1750199454079,-781.45,0.00016438,2]
[366343965,1750199454089,-490.0,0.00016438,2]
[366343966,1750199454099,-490.0,0.00016438,2]
[366343967,1750199454108,-672.89,0.00016438,2]
[366343968,1750199454118,-490.0,0.00016438,2]
[366343969,1750199454127,-2784.53,0.00016438,2]
[366343970,1750199454137,-190.69909012,0.00016438,2]
[366343971,1750199454147,-490.0,0.00016438,2]
[366343972,1750199454157,-531.9,0.00016438,2]
[366343973,1750199454171,-490.0,0.00016438,2]
[366343974,1750199454181,-490.0,0.00016438,2]
[366343975,1750199454190,-2301.41,0.00016438,2]
[366343976,1750199454200,-460.0,0.00016438,2]
[366343977,1750199454210,-490.0,0.00016438,2]
[366343978,1750199454220,-490.0,0.00016438,2]
[366343979,1750199454230,-490.0,0.00016438,2]
[366343980,1750199454240,-490.0,0.00016438,2]
[366343981,1750199454249,-490.0,0.00016438,2]
[366343982,1750199454259,-490.0,0.00016438,2]
[366343983,1750199454268,-490.0,0.00016438,2]
[366343984,1750199454278,-490.0,0.00016438,2]
[366343985,1750199454288,-1055.08,0.00016438,2]
[366343986,1750199454298,-624.52,0.00016438,2]
[366343987,1750199454308,-490.0,0.00016438,2]
[366343988,1750199454318,-490.0,0.00016438,2]
[366343989,1750199454329,-490.0,0.00016438,2]
[366343990,1750199454339,-490.0,0.00016438,2]
[366343991,1750199454349,-560.53883236,0.00016438,2]
[366343992,1750199454359,-1488.55,0.00016438,2]
[366343993,1750199454370,-436.20834689,0.00016438,2]
[366343994,1750199454380,-490.0,0.00016438,2]
[366343995,1750199454390,-490.0,0.00016438,2]
[366343996,1750199454400,-490.0,0.00016438,2]
[366343997,1750199454411,-151.0,0.00016438,2]
[366343998,1750199454421,-151.790471,0.00016438,2]
[366343999,1750199454431,-490.0,0.00016438,2]
[366344000,1750199454441,-490.0,0.00016438,2]
[366344001,1750199454451,-1393.04,0.00016438,2]
[366344002,1750199454462,-840.29,0.00016438,2]
[366344003,1750199454476,-616.5,0.00016438,2]
[366344004,1750199454487,-490.0,0.00016438,2]
[366344005,1750199454501,-2553.44,0.00016438,2]
[366344006,1750199454511,-1515.59,0.00016438,2]
[366344007,1750199454522,-790.15,0.00016438,2]
[366344008,1750199454533,-840.83,0.00016438,2]
[366344009,1750199454543,-1026.9,0.00016438,2]
[366344010,1750199454554,-636.45,0.00016438,2]
[366344011,1750199454564,-1397.47,0.00016438,2]